bitfinex/quotes_BTCUSD_20250226
["timestamp","ask_amount","ask_price","bid_price","bid_amount"]
[1740561640774,0.01760439,89101.0,89100.0,0.00530075]
[1740561641205,0.01760439,89101.0,89100.0,0.00730075]
[1740561641542,0.18595239,89101.0,89100.0,0.00730075]
[1740561642136,0.18595239,89101.0,89100.0,0.004]
[1740561643322,0.48595239,89101.0,89100.0,0.004]
[1740561643525,0.468348,89101.0,89100.0,0.004]
[1740561643736,0.168372,89088.0,89087.0,0.32506]
[1740561644473,0.168371,89089.0,89087.0,0.32506]
[1740561644675,0.0445,89102.0,89087.0,0.32506]
[1740561644833,0.168372,89089.0,89087.0,0.32506]
[1740561645811,0.224469,89099.0,89084.0,0.224504]
[1740561646012,0.168364,89093.0,89087.0,0.168374]
[1740561646354,0.0004238,89101.0,89087.0,0.006]
[1740561646558,0.16837,89090.0,89087.0,0.006]
[1740561646755,0.16837,89089.0,89087.0,0.005]
[1740561646959,0.0004238,89101.0,89087.0,0.005]
[1740561647156,0.0004238,89101.0,89084.0,0.002]
[1740561647371,0.168361,89095.0,89088.0,0.168372]
[1740561647558,0.0004238,89101.0,89087.0,0.004]
[1740561647764,0.168378,89085.0,89076.0,0.32506]
[1740561647947,0.168374,89088.0,89087.0,0.006]
[1740561648148,0.01760558,89096.0,89087.0,0.006]
[1740561648149,0.22448,89095.0,89087.0,0.006]
[1740561648347,0.168361,89094.0,89088.0,0.168371]
[1740561648584,0.168361,89094.0,89088.0,0.172371]
[1740561648742,0.168361,89094.0,89089.0,0.16837]
[1740561648968,0.168359,89095.0,89089.0,0.16837]
[1740561649172,0.168361,89094.0,89089.0,0.16837]
[1740561649418,0.01760558,89096.0,89088.0,0.172371]
[1740561649627,0.168361,89094.0,89088.0,0.172371]
[1740561649784,0.168361,89094.0,89088.0,0.168371]
[1740561650228,0.168363,89093.0,89089.0,0.004]
[1740561650615,0.01760558,89096.0,89087.0,0.005]
[1740561650799,0.168359,89095.0,89089.0,0.168369]
[1740561651173,0.168361,89094.0,89089.0,0.168369]
[1740561651341,0.168363,89093.0,89088.0,0.176372]
[1740561651546,0.01760558,89096.0,89088.0,0.004]
[1740561651752,0.16837,89089.0,89088.0,0.004]
[1740561652328,0.168372,89088.0,89087.0,0.003]
[1740561653014,0.224491,89091.0,89087.0,0.003]
[1740561653208,0.224491,89091.0,89088.0,0.003]
[1740561653407,0.16837,89089.0,89088.0,0.003]
[1740561653633,0.16837,89089.0,89088.0,0.007]
[1740561653773,0.168382,89083.0,89076.0,0.32506]
[1740561654381,0.168379,89085.0,89076.0,0.493455]
[1740561654580,0.224504,89086.0,89076.0,0.493455]
[1740561654813,0.16838,89084.0,89076.0,0.493455]
[1740561655134,0.16838,89084.0,89076.0,0.32506]
[1740561655335,0.16838,89084.0,89076.0,0.33006]
[1740561655893,0.168383,89083.0,89076.0,0.33006]
[1740561656334,0.168383,89083.0,89076.0,0.33506]
[1740561656601,0.224481,89095.0,89076.0,0.498455]
[1740561656757,0.168376,89087.0,89078.0,0.16839]
[1740561656935,0.168375,89087.0,89078.0,0.16839]
[1740561657140,0.168366,89092.0,89082.0,0.168383]
[1740561657342,0.026,89102.0,89077.0,0.224524]
[1740561657560,0.168372,89088.0,89079.0,0.168388]
[1740561657767,0.168374,89087.0,89078.0,0.168391]
[1740561657928,0.01760589,89096.0,89076.0,0.498454]
[1740561658125,0.24208289,89096.0,89078.0,0.003]
[1740561658326,0.168376,89087.0,89078.0,0.17139]
[1740561658608,0.01760589,89096.0,89078.0,0.003]
[1740561658757,0.01760589,89096.0,89083.0,0.168381]
[1740561658938,0.224484,89094.0,89078.0,0.003]
[1740561659141,0.01760589,89096.0,89078.0,0.003]
[1740561659340,0.01760589,89096.0,89078.0,0.227521]
[1740561659569,0.224484,89093.0,89082.0,0.168383]
[1740561659763,0.168374,89088.0,89079.0,0.168389]
[1740561660183,0.168374,89087.0,89079.0,0.168389]
[1740561660390,0.224479,89095.0,89078.0,0.001]
[1740561660586,0.168379,89085.0,89077.0,0.168393]
[1740561660790,0.224503,89086.0,89076.0,0.32506]
[1740561661199,0.168381,89084.0,89079.0,0.003]
[1740561661526,0.16838,89084.0,89082.0,0.001]
[1740561661651,0.224506,89085.0,89082.0,0.001]
[1740561662071,0.16838,89084.0,89082.0,0.001]
[1740561662659,0.168378,89085.0,89082.0,0.001]
[1740561662855,0.168378,89085.0,89077.0,0.172393]
[1740561663072,0.168378,89085.0,89077.0,0.172353]
[1740561663273,0.168378,89085.0,89078.0,0.168391]
[1740561663469,0.168382,89084.0,89076.0,0.32906]
[1740561663699,0.168382,89084.0,89082.0,0.004]
[1740561663829,0.224482,89094.0,89076.0,0.32506]
[1740561664059,0.168376,89087.0,89082.0,0.005]
[1740561664259,0.224485,89093.0,89082.0,0.005]
[1740561664465,0.03002888,89105.0,89082.0,0.00375192]
[1740561664660,0.224485,89093.0,89076.0,0.31276183]
[1740561664888,0.3,89103.0,89076.0,0.31276183]
[1740561665047,0.3,89103.0,89076.0,0.48115583]
[1740561665412,0.168379,89085.0,89076.0,0.31276183]
[1740561665788,0.168372,89089.0,89078.0,0.168391]
[1740561665987,0.03002888,89105.0,89076.0,0.30976183]
[1740561666193,0.168374,89087.0,89082.0,0.003]
[1740561666484,0.168377,89086.0,89082.0,0.003]
[1740561666686,0.168378,89085.0,89082.0,0.003]
[1740561666917,0.168376,89086.0,89082.0,0.003]
[1740561667108,0.168376,89086.0,89076.0,0.48115683]
[1740561667310,0.168376,89086.0,89076.0,0.47715683]
[1740561667511,0.3,89097.0,89078.0,0.168391]
[1740561667719,0.168375,89087.0,89082.0,0.004]
[1740561668039,0.168378,89086.0,89082.0,0.004]
[1740561668238,0.224489,89091.0,89082.0,0.004]
[1740561668443,0.01760613,89093.0,89082.0,0.004]
[1740561668792,0.168378,89086.0,89082.0,0.004]
[1740561669004,0.168378,89085.0,89082.0,0.004]
[1740561669216,0.168378,89085.0,89077.0,0.0008476]
[1740561669429,0.2249238,89087.0,89077.0,0.0008476]
[1740561669616,0.2249238,89087.0,89082.0,0.001]
[1740561670069,0.168376,89086.0,89077.0,0.0008476]
[1740561670261,0.0004238,89087.0,89082.0,0.008]
[1740561670447,0.168379,89085.0,89082.0,0.008]
[1740561670646,0.0004238,89087.0,89077.0,0.0008476]
[1740561670849,0.168382,89083.0,89082.0,0.003]
[1740561671057,0.168382,89083.0,89082.0,0.006]
[1740561671755,0.168381,89084.0,89082.0,0.006]
[1740561671961,0.0004238,89087.0,89082.0,0.006]
[1740561672157,0.0004238,89087.0,89077.0,0.0008476]
[1740561672358,0.0004238,89087.0,89082.0,0.005]
[1740561672563,0.2249248,89087.0,89082.0,0.009]
[1740561672783,0.168378,89085.0,89082.0,0.004]
[1740561672989,0.16727681,89085.0,89082.0,0.004]
[1740561673537,0.16727681,89085.0,89077.0,0.0038476]
[1740561673717,0.16727681,89085.0,89082.0,0.003]
[1740561673869,0.168376,89086.0,89077.0,0.1692406]
[1740561674076,0.2249248,89087.0,89082.0,0.008]
[1740561674077,0.0004238,89087.0,89082.0,0.008]
[1740561674281,0.0004238,89087.0,89082.0,0.176384]
[1740561674477,0.0004238,89087.0,89082.0,0.008]
[1740561675358,0.0004238,89087.0,89082.0,0.004]
[1740561675590,0.0004238,89087.0,89082.0,0.168383]
[1740561676137,0.0004238,89087.0,89084.0,0.168379]
[1740561676350,0.0004238,89087.0,89083.0,0.168382]
[1740561676528,0.0004238,89087.0,89082.0,0.174383]
[1740561676983,0.0004238,89087.0,89083.0,0.16838]
[1740561677370,0.0004238,89087.0,89077.0,0.0008476]
[1740561677573,0.0004238,89087.0,89083.0,0.003]
[1740561677949,0.0004238,89087.0,89084.0,0.003]
[1740561679143,0.0004238,89087.0,89083.0,0.003]
[1740561680002,0.0004238,89087.0,89082.0,0.168382]
[1740561680235,0.0004238,89087.0,89084.0,0.003]
[1740561680736,0.0004238,89087.0,89083.0,0.003]
[1740561680944,0.0004238,89087.0,89083.0,0.006]
[1740561681115,0.0004238,89087.0,89083.0,0.003]
[1740561681494,0.0004238,89087.0,89083.0,0.171382]
[1740561681868,0.0004238,89087.0,89083.0,0.003]
[1740561682069,0.0004238,89087.0,89083.0,0.171382]
[1740561682267,0.0004238,89087.0,89083.0,0.168382]
[1740561682523,0.0004238,89087.0,89084.0,0.003]
[1740561682939,0.0004238,89087.0,89083.0,0.003]
[1740561683299,0.0004238,89087.0,89083.0,0.006]
[1740561683699,0.0004238,89087.0,89083.0,0.003]
[1740561684546,0.0004238,89087.0,89086.0,0.168376]
[1740561685877,0.0004238,89087.0,89086.0,0.253376]
[1740561686281,0.0004238,89087.0,89086.0,0.302976]
[1740561686482,0.0004238,89087.0,89086.0,0.305976]
[1740561695058,0.1687978,89087.0,89086.0,0.006]
[1740561695619,0.224492,89090.0,89086.0,0.006]
[1740561695824,0.168374,89087.0,89086.0,0.006]
[1740561696807,0.5970592,89087.0,89086.0,0.003]
[1740561697011,0.6230592,89087.0,89086.0,1e-06]
[1740561697223,0.16842,89063.0,89062.0,0.01915119]
[1740561697664,0.01760887,89122.0,89090.0,0.224492]
[1740561697940,0.01760887,89122.0,89100.0,0.29825]
[1740561698118,0.09908754,89123.0,89100.0,0.29825]
[1740561698242,0.09908754,89123.0,89100.0,0.30107921]
[1740561698444,0.00084084,89101.0,89100.0,0.30107921]
[1740561699689,0.00084084,89101.0,89100.0,0.30807921]
[1740561700551,0.00084084,89101.0,89100.0,0.31507921]
[1740561702747,0.00084084,89101.0,89100.0,0.14672921]
[1740561703687,0.16918884,89101.0,89100.0,0.01682921]
[1740561704119,0.16918884,89101.0,89100.0,0.014]
[1740561704742,0.16918884,89101.0,89100.0,0.007]
[1740561704971,0.16918884,89101.0,89094.0,0.168359]
[1740561705187,0.16918884,89101.0,89100.0,0.014]
[1740561705441,0.00084084,89101.0,89100.0,0.014]
[1740561705678,0.00084084,89101.0,89100.0,0.17535]
[1740561706107,0.00084084,89101.0,89100.0,0.17817921]
[1740561706441,0.00084084,89101.0,89100.0,0.17117921]
[1740561706670,0.00084084,89101.0,89100.0,0.18117921]
[1740561709823,0.16918884,89101.0,89100.0,0.01282921]
[1740561710255,0.16918884,89101.0,89100.0,0.01]
[1740561713313,0.16918884,89101.0,89100.0,0.01282921]
[1740561713872,0.16918884,89101.0,89100.0,0.01]
[1740561714683,0.00084084,89101.0,89100.0,0.01]
[1740561714888,0.00084084,89101.0,89100.0,0.01282921]
[1740561715084,0.00084084,89101.0,89100.0,0.1384]
[1740561715262,0.0004236,89106.0,89105.0,0.16834]
[1740561715463,0.00054858,89106.0,89105.0,0.42449921]
[1740561715733,0.00054858,89106.0,89105.0,0.42575199]
[1740561716794,0.00054858,89106.0,89105.0,0.43275199]
[1740561717041,0.00054858,89106.0,89105.0,0.42575199]
[1740561717399,0.00054858,89106.0,89105.0,0.43275199]
[1740561717600,0.00054858,89106.0,89105.0,0.42575199]
[1740561718319,0.00054858,89106.0,89105.0,0.43275199]
[1740561718874,0.00054858,89106.0,89105.0,0.42575199]
[1740561719150,0.00054858,89106.0,89105.0,0.44947199]
[1740561720409,0.00054858,89106.0,89105.0,0.44247199]
[1740561720797,0.00054858,89106.0,89105.0,0.44947199]
[1740561721705,0.02595702,89126.0,89124.0,0.168304]
[1740561721946,0.01359608,89125.0,89124.0,0.244904]
[1740561722148,0.01359608,89125.0,89124.0,0.24770633]
[1740561722622,0.01359608,89125.0,89124.0,0.07940233]
[1740561723319,0.01359608,89125.0,89124.0,0.08140233]
[1740561723752,0.01359608,89125.0,89124.0,0.13090233]
[1740561723924,0.01359608,89125.0,89124.0,0.13086233]
[1740561724662,0.01359608,89125.0,89124.0,0.13286233]
[1740561725090,0.01359608,89125.0,89124.0,0.00680233]
[1740561725430,0.01359608,89125.0,89124.0,0.004]
[1740561725844,0.01359608,89125.0,89124.0,0.00675191]
[1740561726271,0.01359608,89125.0,89124.0,0.17505591]
[1740561726682,0.01359608,89125.0,89124.0,0.28880344]
[1740561726922,0.01359608,89125.0,89124.0,0.36640344]
[1740561727243,0.01359608,89125.0,89124.0,0.40980344]
[1740561727545,0.01359608,89125.0,89124.0,0.43287373]
[1740561727741,0.01359608,89125.0,89124.0,0.43587373]
[1740561727895,0.01359608,89125.0,89124.0,0.24449944]
[1740561728095,0.01401968,89125.0,89124.0,0.24449944]
[1740561728329,0.01401968,89125.0,89124.0,0.24149944]
[1740561728527,0.01401968,89125.0,89124.0,0.24249944]
[1740561728710,0.01401968,89125.0,89124.0,0.24649944]
[1740561729036,0.01401968,89125.0,89124.0,0.23949944]
[1740561729350,0.01401968,89125.0,89124.0,0.40780344]
[1740561729640,0.01401968,89125.0,89124.0,0.41480344]
[1740561730245,0.01401968,89125.0,89124.0,0.23949944]
[1740561730744,0.01401968,89125.0,89124.0,0.24649944]
[1740561731053,0.01401968,89125.0,89124.0,0.43634429]
[1740561731626,0.01401968,89125.0,89124.0,0.42934429]
[1740561732045,0.01401968,89125.0,89124.0,0.43634429]
[1740561732284,0.01401968,89125.0,89124.0,0.42234429]
[1740561732655,0.01401968,89125.0,89124.0,0.43634429]
[1740561733026,0.00874666,89181.0,89135.0,0.31252485]
[1740561733175,0.00874666,89181.0,89151.0,0.468253]
[1740561733376,0.00054872,89152.0,89151.0,0.72624138]
[1740561733640,0.00054872,89152.0,89151.0,0.72896307]
[1740561734140,0.00054872,89152.0,89151.0,0.73868307]
[1740561734462,0.00054872,89152.0,89151.0,0.57043007]
[1740561735112,0.00054872,89152.0,89151.0,0.73868307]
[1740561735326,0.00054872,89152.0,89151.0,0.57043007]
[1740561735581,0.00054872,89152.0,89151.0,0.73868307]
[1740561735785,0.00054872,89152.0,89151.0,0.74568307]
[1740561735915,0.00054872,89152.0,89151.0,0.75268307]
[1740561736119,0.00054872,89152.0,89151.0,0.58443007]
[1740561736314,0.00054872,89152.0,89151.0,0.75268307]
[1740561737141,0.24558195,89174.0,89152.0,0.31454085]
[1740561737348,0.02130095,89174.0,89154.0,0.48278885]
[1740561737522,0.224279,89175.0,89156.0,0.01454085]
[1740561737740,0.224279,89175.0,89157.0,0.11531748]
[1740561737942,0.16821,89174.0,89157.0,0.11803245]
[1740561738126,0.224275,89176.0,89157.0,0.11803245]
[1740561738881,0.168218,89170.0,89157.0,0.11803245]
[1740561739084,0.16821,89174.0,89162.0,0.09046704]
[1740561739222,0.02380487,89174.0,89162.0,0.092037]
[1740561739424,0.168212,89174.0,89162.0,0.092037]
[1740561739661,0.168214,89172.0,89163.0,0.00270826]
[1740561739828,0.00011216,89172.0,89163.0,0.00270826]
[1740561740028,0.168218,89170.0,89163.0,0.00270826]
[1740561740341,0.00011216,89172.0,89163.0,0.00270826]
[1740561740342,0.168229,89164.0,89163.0,0.00270826]
[1740561740739,0.00011216,89172.0,89158.0,0.083]
[1740561740947,0.168238,89159.0,89158.0,0.083]
[1740561741718,0.224315,89161.0,89151.0,0.1326476]
[1740561741897,0.168238,89160.0,89157.0,0.006]
[1740561742103,0.168235,89161.0,89152.0,0.00272057]
[1740561742243,0.00053596,89172.0,89158.0,0.00271385]
[1740561742435,0.00053596,89172.0,89158.0,0.007]
[1740561742641,0.16875096,89172.0,89159.0,0.00271274]
[1740561742847,0.16875096,89172.0,89160.0,0.00157013]
[1740561742848,0.00053596,89172.0,89160.0,0.00157013]
[1740561743303,0.00053596,89172.0,89161.0,0.0027105]
[1740561743474,0.16875096,89172.0,89161.0,0.0027105]
[1740561743671,0.168217,89171.0,89161.0,0.0027105]
[1740561743857,0.00053596,89172.0,89159.0,0.00157001]
[1740561744074,0.168218,89170.0,89162.0,0.00270938]
[1740561744248,0.168219,89170.0,89159.0,0.00157001]
[1740561744447,0.00053596,89172.0,89160.0,0.247736]
[1740561744655,0.00053596,89172.0,89161.0,0.00157]
[1740561744881,0.00053596,89172.0,89161.0,0.0042805]
[1740561745088,0.16874996,89172.0,89161.0,0.0042805]
[1740561745673,0.168216,89171.0,89161.0,0.0042805]
[1740561745892,0.00053596,89172.0,89161.0,0.0057105]
[1740561746328,0.168222,89168.0,89161.0,0.0047105]
[1740561746532,0.168223,89168.0,89161.0,0.0047105]
[1740561746891,0.168223,89168.0,89161.0,0.002]
[1740561747088,0.00053596,89172.0,89161.0,0.002]
[1740561747347,0.168231,89163.0,89162.0,0.00270938]
[1740561747652,0.168227,89165.0,89161.0,0.002]
[1740561747961,0.00053596,89172.0,89160.0,0.0795]
[1740561748155,0.16822,89169.0,89161.0,0.006]
[1740561748397,0.00053596,89172.0,89161.0,0.006]
[1740561748634,0.00053596,89172.0,89162.0,0.00266122]
[1740561748807,0.16822,89169.0,89162.0,0.01023122]
[1740561749020,0.00053596,89172.0,89161.0,0.005]
[1740561749188,0.168222,89168.0,89163.0,0.0026601]
[1740561749399,0.168223,89167.0,89160.0,0.0815]
[1740561749574,0.168223,89167.0,89164.0,0.00265898]
[1740561749779,0.00053596,89172.0,89162.0,0.004]
[1740561749983,0.00053596,89172.0,89163.0,0.0026601]
[1740561750540,0.00053596,89172.0,89165.0,0.0824]
[1740561750680,0.00053596,89172.0,89171.0,0.168216]
[1740561750861,0.00053596,89172.0,89166.0,0.00265674]
[1740561751077,0.00053596,89172.0,89171.0,0.00265115]
[1740561751281,0.16821,89174.0,89166.0,0.0015699]
[1740561751481,0.168214,89172.0,89171.0,0.00265115]
[1740561751776,0.224282,89174.0,89165.0,0.0824]
[1740561751951,0.0004237,89177.0,89166.0,0.005]
[1740561752153,0.168214,89172.0,89171.0,0.00265115]
[1740561752364,0.0004237,89177.0,89165.0,0.0824]
[1740561752510,0.2246967,89177.0,89166.0,0.003]
[1740561752716,0.16822,89169.0,89165.0,0.0824]
[1740561752910,0.168218,89170.0,89165.0,0.0824]
[1740561753111,0.02335037,89177.0,89165.0,0.0824]
[1740561753343,0.168221,89169.0,89165.0,0.0824]
[1740561753703,0.168218,89170.0,89165.0,0.0824]
[1740561754034,0.0004238,89172.0,89165.0,0.0824]
[1740561754557,0.0004238,89172.0,89166.0,0.00422663]
[1740561754976,0.1686378,89172.0,89171.0,0.003]
[1740561755260,0.0004238,89172.0,89171.0,0.003]
[1740561755420,0.0004238,89172.0,89166.0,0.00356989]
[1740561755623,0.0004238,89172.0,89171.0,0.00265115]
[1740561755827,0.168217,89171.0,89166.0,0.00156989]
[1740561756031,0.0004238,89172.0,89166.0,0.00156989]
[1740561756032,0.0004238,89172.0,89166.0,0.005]
[1740561756221,0.0004238,89172.0,89167.0,0.00156993]
[1740561756445,0.0004238,89172.0,89171.0,0.005]
[1740561756610,0.1686378,89172.0,89171.0,0.005]
[1740561757241,0.0004238,89172.0,89171.0,0.005]
[1740561757456,0.1686378,89172.0,89171.0,0.3301]
[1740561757666,0.0004238,89172.0,89171.0,0.3301]
[1740561757856,0.1686378,89172.0,89171.0,0.3251]
[1740561758191,0.0004238,89172.0,89171.0,0.3251]
[1740561758544,0.1686378,89172.0,89171.0,0.3251]
[1740561758888,0.1686378,89172.0,89171.0,0.3351]
[1740561759503,0.1686378,89172.0,89171.0,0.4082]
[1740561759725,0.0004238,89172.0,89171.0,0.4122]
[1740561760010,0.0004238,89172.0,89171.0,0.4162]
[1740561760221,0.0004238,89172.0,89171.0,0.4122]
[1740561760362,0.1686378,89172.0,89171.0,0.4122]
[1740561760567,0.1686378,89172.0,89171.0,0.4142]
[1740561760765,0.1686378,89172.0,89171.0,0.0891]
[1740561761006,0.0004238,89172.0,89171.0,0.0891]
[1740561761191,0.0004238,89172.0,89171.0,0.09175115]
[1740561761589,0.0004238,89172.0,89171.0,0.08775115]
[1740561761793,0.0004238,89172.0,89171.0,0.08575115]
[1740561761994,0.1686378,89172.0,89171.0,0.08575115]
[1740561762199,0.1686378,89172.0,89171.0,0.09175115]
[1740561762459,0.0004238,89172.0,89171.0,0.13595115]
[1740561762631,0.0004238,89172.0,89171.0,0.13495115]
[1740561762840,0.1686378,89172.0,89171.0,0.13895115]
[1740561763217,0.0004238,89172.0,89171.0,0.13895115]
[1740561763576,0.0004238,89172.0,89171.0,0.13795115]
[1740561763737,0.1686378,89172.0,89171.0,0.14295115]
[1740561763939,0.0004238,89172.0,89171.0,0.14295115]
[1740561764887,0.0004238,89172.0,89171.0,0.1403]
[1740561765083,0.0004238,89172.0,89171.0,0.14295115]
[1740561765507,0.0004238,89172.0,89171.0,0.13995115]
[1740561765716,0.0004238,89172.0,89171.0,0.13495115]
[1740561765866,0.0004238,89172.0,89171.0,0.13995115]
[1740561766267,0.0004238,89172.0,89171.0,0.14395115]
[1740561766463,0.0004238,89172.0,89171.0,0.30973696]
[1740561766663,0.0004238,89172.0,89171.0,0.13995115]
[1740561766867,0.0004238,89172.0,89171.0,0.14152097]
[1740561767273,0.0004238,89172.0,89171.0,0.13652097]
[1740561767478,0.0004238,89172.0,89171.0,0.31473697]
[1740561767702,0.0004238,89172.0,89171.0,0.31316715]
[1740561767911,0.0004238,89172.0,89171.0,0.30816715]
[1740561768110,0.0004238,89172.0,89171.0,0.31516715]
[1740561768715,0.0004238,89172.0,89171.0,0.31016715]
[1740561769119,0.0004238,89172.0,89171.0,0.31716715]
[1740561769525,0.0004238,89172.0,89171.0,0.30316715]
[1740561769949,0.0004238,89172.0,89171.0,0.31716715]
[1740561770148,0.0004238,89172.0,89171.0,0.31016715]
[1740561770566,0.0004238,89172.0,89171.0,0.31716715]
[1740561770812,0.000424,89215.0,89196.0,0.296568]
[1740561770963,1e-06,89197.0,89196.0,2.656808]
[1740561771171,1e-06,89197.0,89196.0,2.68021713]
[1740561771369,1e-06,89197.0,89196.0,2.6830421]
[1740561771557,1e-06,89197.0,89196.0,2.5732021]
[1740561771752,1e-06,89197.0,89196.0,2.4644421]
[1740561771999,1e-06,89197.0,89196.0,2.47818963]
[1740561772513,1e-06,89197.0,89196.0,2.49273048]
[1740561772657,1e-06,89197.0,89196.0,2.49624285]
[1740561773057,1e-06,89197.0,89196.0,1.64523938]
[1740561773254,1e-06,89197.0,89196.0,1.31199025]
[1740561773455,1e-06,89197.0,89196.0,1.63583025]
[1740561774070,1e-06,89197.0,89196.0,1.61322135]
[1740561775468,0.000424,89215.0,89213.0,0.168136]
[1740561775685,0.01390039,89214.0,89213.0,0.37602889]
[1740561775884,0.01390039,89214.0,89213.0,1.23772889]
[1740561776511,0.01390039,89214.0,89213.0,1.24372889]
[1740561776863,0.01390039,89214.0,89213.0,1.58902889]
[1740561777071,0.01390039,89214.0,89213.0,1.59602889]
[1740561778051,0.224099,89247.0,89214.0,0.31454085]
[1740561778250,0.224099,89247.0,89213.0,1.10735204]
[1740561778251,0.168085,89241.0,89233.0,0.168098]
[1740561778452,0.168086,89240.0,89233.0,0.168098]
[1740561778651,0.19151515,89240.0,89234.0,0.00277924]
[1740561778894,0.00054889,89242.0,89237.0,0.22412]
[1740561779084,0.00054889,89242.0,89238.0,0.168089]
[1740561779273,0.00054889,89242.0,89238.0,0.00277443]
[1740561779470,0.00054889,89242.0,89235.0,0.0784]
[1740561779698,0.168086,89240.0,89239.0,0.00277323]
[1740561779853,0.168086,89240.0,89235.0,0.0784]
[1740561779854,0.224112,89241.0,89234.0,0.007]
[1740561780071,0.168095,89235.0,89234.0,0.007]
[1740561781233,0.168116,89224.0,89222.0,0.3251]
[1740561781535,0.168116,89224.0,89213.0,0.0453]
[1740561781536,0.224112,89241.0,89213.0,0.0453]
[1740561781691,0.224117,89239.0,89210.0,0.3251]
[1740561781892,0.00054889,89242.0,89234.0,0.007]
[1740561782120,0.168095,89235.0,89234.0,0.007]
[1740561782475,0.168095,89235.0,89234.0,0.002]
[1740561782630,0.0449,89241.0,89223.0,0.007]
[1740561782820,0.0449,89241.0,89211.0,0.11374753]
[1740561783028,0.168138,89212.0,89211.0,0.11374753]
[1740561783202,0.16814,89211.0,89210.0,0.3251]
[1740561783413,0.02385806,89240.0,89239.0,0.246487]
[1740561783597,0.0449,89297.0,89239.0,0.246487]
[1740561783598,0.00835383,89267.0,89241.0,0.168084]
[1740561783801,0.00835383,89267.0,89241.0,0.29794094]
[1740561784077,0.224064,89261.0,89241.0,0.29637238]
[1740561784216,0.00054889,89242.0,89241.0,0.29637238]
[1740561784613,0.00054889,89242.0,89241.0,0.29633238]
[1740561785046,0.00054889,89242.0,89241.0,0.12828838]
[1740561785250,0.00054889,89242.0,89241.0,0.29637238]
[1740561785426,0.00054889,89242.0,89241.0,0.29737238]
[1740561786050,0.00054889,89242.0,89241.0,0.30037238]
[1740561787400,0.00054889,89242.0,89241.0,0.13228838]
[1740561787581,0.16863089,89242.0,89241.0,0.13228838]
[1740561787730,0.16863089,89242.0,89241.0,0.11974753]
[1740561788450,0.00054889,89242.0,89241.0,0.44484753]
[1740561788651,0.00054889,89242.0,89241.0,0.3281]
[1740561788837,0.00054889,89242.0,89241.0,0.3251]
[1740561789032,0.00054889,89242.0,89241.0,0.3271]
[1740561789245,0.16863089,89242.0,89241.0,0.3301]
[1740561790032,0.16863089,89242.0,89241.0,0.005]
[1740561790552,0.46863089,89242.0,89241.0,0.005]
[1740561791011,0.46863089,89242.0,89241.0,0.003]
[1740561791235,0.4872086,89242.0,89241.0,0.003]
[1740561791763,0.4862086,89242.0,89241.0,0.003]
[1740561791949,0.168116,89224.0,89223.0,0.000847]
[1740561792146,0.00154889,89242.0,89241.0,0.168084]
[1740561792409,0.00154889,89242.0,89241.0,0.28339976]
[1740561792658,0.00154889,89242.0,89241.0,0.28460235]
[1740561792974,0.00254889,89242.0,89241.0,0.28460235]
[1740561793148,0.00154889,89242.0,89241.0,0.11651835]
[1740561793327,0.00154889,89242.0,89241.0,0.28617086]
[1740561793494,0.00054889,89242.0,89241.0,0.12351835]
[1740561793693,0.16863089,89242.0,89241.0,0.44161835]
[1740561793898,0.16863089,89242.0,89241.0,0.32787082]
[1740561795036,0.16863089,89242.0,89241.0,0.33487082]
[1740561795467,0.16863089,89242.0,89241.0,0.32787082]
[1740561795891,0.16863089,89242.0,89241.0,0.33187082]
[1740561796095,0.16863089,89242.0,89241.0,0.00677082]
[1740561796314,0.16863089,89242.0,89241.0,0.004]
[1740561796628,0.46863089,89242.0,89241.0,0.006]
[1740561797039,0.16811,89227.0,89226.0,0.3251]
[1740561797907,0.168116,89224.0,89223.0,0.000847]
[1740561800293,0.168116,89224.0,89223.0,0.001847]
[1740561800500,0.001,89224.0,89223.0,0.51609453]
[1740561800702,0.001,89224.0,89223.0,0.53342786]
[1740561800904,0.001,89224.0,89223.0,0.75758286]
[1740561801104,0.0175786,89248.0,89224.0,0.01454085]
[1740561801393,0.2416736,89248.0,89225.0,0.11231629]
[1740561801703,0.168101,89232.0,89225.0,0.00279007]
[1740561801937,0.00156876,89244.0,89223.0,0.401347]
[1740561802213,0.00156876,89244.0,89226.0,0.00278887]
[1740561802486,0.224112,89241.0,89224.0,0.00302388]
[1740561802715,0.0175786,89248.0,89227.0,0.00301997]
[1740561802953,0.168099,89233.0,89224.0,0.168115]
[1740561803182,0.224112,89241.0,89228.0,0.00301866]
[1740561803410,0.224121,89238.0,89223.0,0.401347]
[1740561803637,0.168104,89230.0,89229.0,0.00301736]
[1740561803849,0.16811,89227.0,89226.0,0.003]
[1740561804516,0.168106,89229.0,89228.0,0.004]
[1740561804873,0.168116,89224.0,89223.0,0.325947]
[1740561806752,0.168116,89224.0,89223.0,0.005847]
[1740561807315,0.47673768,89224.0,89223.0,0.005847]
[1740561807481,0.47673768,89224.0,89223.0,0.009847]
[1740561807727,0.168159,89201.0,89200.0,0.3251]
[1740561807926,0.168176,89192.0,89191.0,0.3251]
[1740561808962,0.224199,89207.0,89191.0,0.00041649]
[1740561809295,0.168176,89192.0,89191.0,0.00041649]
[1740561810059,0.168176,89192.0,89191.0,0.00641649]
[1740561810060,0.169176,89192.0,89191.0,0.00641649]
[1740561810682,0.169176,89192.0,89191.0,0.01141649]
[1740561811141,0.18980432,89192.0,89191.0,0.01141649]
[1740561813126,0.18980432,89192.0,89191.0,0.01226329]
[1740561813333,0.19114096,89194.0,89191.0,0.00126329]
[1740561813526,0.168176,89192.0,89191.0,0.00126329]
[1740561813867,0.169176,89192.0,89191.0,0.00126329]
[1740561814287,0.171176,89192.0,89191.0,0.00126329]
[1740561814820,0.169176,89192.0,89191.0,0.00126329]
[1740561815218,0.471176,89192.0,89191.0,0.00126329]
[1740561817764,0.469176,89192.0,89191.0,0.00126329]
[1740561818049,0.468176,89192.0,89191.0,0.00126329]
[1740561818249,0.468176,89192.0,89191.0,0.00226329]
[1740561818905,0.468176,89192.0,89191.0,0.00426329]
[1740561819493,0.468176,89192.0,89191.0,0.00326329]
[1740561819900,0.469176,89192.0,89191.0,0.00326329]
[1740561820097,0.469176,89192.0,89191.0,0.00126329]